bitfinex/quotes_SOLUSD_20250815
["timestamp","ask_amount","ask_price","bid_price","bid_amount"]
[1755301571332,1e-08,185.46,185.45,9.22401502]
[1755301572347,1e-08,185.46,185.45,14.61630404]
[1755301574117,3.48624556,185.46,185.45,14.61630404]
[1755301575422,8.02661263,185.46,185.43,0.03]
[1755301575635,12.37998062,185.45,185.43,14.64684541]
[1755301575816,8.02661262,185.44,185.43,44.54283039]
[1755301576236,8.02661262,185.44,185.43,35.43533825]
[1755301576433,8.02661262,185.44,185.43,44.65935327]
[1755301576821,8.02661262,185.44,185.43,35.43533825]
[1755301578425,8.02661262,185.44,185.43,114.63533825]
[1755301579223,12.39876282,185.44,185.43,114.63533825]
[1755301579636,8.02661262,185.44,185.43,114.63533825]
[1755301579818,7.36661262,185.44,185.43,120.02820887]
[1755301581019,8.02661262,185.44,185.43,120.02820887]
[1755301581349,7.36661262,185.44,185.43,129.25222389]
[1755301581845,3.48624555,185.44,185.43,129.95222389]
[1755301582061,1e-08,185.46,185.43,129.95222389]
[1755301582349,3.51860375,185.45,185.43,120.72820887]
[1755301582519,1e-08,185.46,185.43,120.02820887]
[1755301582724,7.43442448,185.45,185.43,120.02820887]
[1755301582929,3.52030334,185.44,185.43,120.02820887]
[1755301583543,1e-08,185.46,185.43,50.75222389]
[1755301583750,1e-08,185.46,185.45,9.22401502]
[1755301583921,3.52264983,185.46,185.45,48.30401502]
[1755301584123,1e-08,185.46,185.45,48.30401502]
[1755301584573,3.52345782,185.46,185.45,48.30401502]
[1755301584722,4.18345782,185.46,185.45,48.30401502]
[1755301584923,8.09781569,185.46,185.45,39.08]
[1755301585452,8.09781569,185.46,185.45,39.06]
[1755301586250,8.09781569,185.46,185.44,39.06]
[1755301586562,3.52345781,185.45,185.44,48.28401502]
[1755301587427,1e-08,185.46,185.45,5.39228902]
[1755301587629,1e-08,185.46,185.45,14.61630404]
[1755301588733,1e-08,185.46,185.45,93.81630404]
[1755301588921,1e-08,185.46,185.45,14.61630404]
[1755301589248,1e-08,185.46,185.45,15.31630404]
[1755301589747,1e-08,185.46,185.45,14.61630404]
[1755301590254,0.66000001,185.46,185.45,5.39228902]
[1755301590453,1e-08,185.46,185.45,14.61630404]
[1755301591860,1e-08,185.46,185.45,15.31630404]
[1755301592674,1e-08,185.46,185.45,41.85553294]
[1755301595137,1e-08,185.46,185.45,14.61630404]
[1755301595346,0.66000001,185.46,185.45,5.39228902]
[1755301595530,0.66000001,185.46,185.44,53.67639746]
[1755301596346,1e-08,185.46,185.45,9.22401502]
[1755301597438,1e-08,185.46,185.45,14.61630404]
[1755301600160,1e-08,185.46,185.45,95.05553294]
[1755301601263,1e-08,185.46,185.45,15.85553294]
[1755301601842,1e-08,185.46,185.45,15.15553294]
[1755301603242,1e-08,185.46,185.45,15.85553294]
[1755301604751,1e-08,185.46,185.45,12.28429878]
[1755301605260,1e-08,185.47,185.45,12.28429878]
[1755301605460,1e-08,185.47,185.46,45.22278086]
[1755301605658,0.06,185.5,185.46,45.22278086]
[1755301605966,0.06,185.5,185.49,5.65278086]
[1755301606143,0.06,185.5,185.49,44.53278086]
[1755301606948,0.06,185.51,185.49,56.26668792]
[1755301607154,0.06,185.51,185.5,5.65278086]
[1755301608982,0.06,185.53,185.5,37.58269998]
[1755301609154,0.06,185.53,185.51,45.18278086]
[1755301609354,0.06,185.53,185.52,6.1918063]
[1755301609773,1e-08,185.53,185.52,6.1918063]
[1755301609977,1e-08,185.53,185.52,6.8818063]
[1755301610279,1e-08,185.53,185.52,6.1918063]
[1755301610646,1e-08,185.53,185.52,6.8818063]
[1755301611266,1e-08,185.53,185.52,12.27206072]
[1755301614476,1e-08,185.53,185.52,11.58206072]
[1755301617487,1e-08,185.53,185.52,12.27206072]
[1755301617954,1e-08,185.53,185.52,11.58206072]
[1755301620379,1e-08,185.53,185.52,17.09365514]
[1755301620774,0.06,185.57,185.54,26.0]
[1755301620989,0.06,185.57,185.56,5.65278086]
[1755301621281,0.26,185.6,185.57,26.0]
[1755301621282,1e-08,185.58,185.57,26.0]
[1755301621476,1e-08,185.58,185.57,76.56444192]
[1755301621862,0.69000001,185.58,185.57,70.91166106]
[1755301622062,1e-08,185.58,185.57,70.91166106]
[1755301622584,1e-08,185.58,185.57,76.30046312]
[1755301622780,0.69000001,185.58,185.57,70.10880206]
[1755301622988,0.69000001,185.58,185.57,75.76158292]
[1755301623184,1e-08,185.58,185.57,75.76158292]
[1755301623763,0.69000001,185.58,185.57,75.76158292]
[1755301624785,1e-08,185.58,185.57,75.76158292]
[1755301628790,1e-08,185.58,185.57,82.10436378]
[1755301628981,1e-08,185.59,185.57,82.10436378]
[1755301629286,1e-08,185.59,185.58,11.84441288]
[1755301629490,1e-08,185.59,185.58,91.04441288]
[1755301629690,0.06,185.6,185.58,91.73441287]
[1755301629910,0.06,185.6,185.59,44.37278086]
[1755301630191,0.06,185.61,185.6,31.65278086]
[1755301630495,0.06,185.61,185.6,117.46950498]
[1755301630496,1e-08,185.61,185.6,117.46950498]
[1755301630678,1e-08,185.61,185.6,116.93071188]
[1755301630877,1e-08,185.61,185.6,116.24071188]
[1755301631685,0.69000001,185.61,185.6,116.24071188]
[1755301633578,0.69000001,185.61,185.6,90.24071188]
[1755301634599,0.69000001,185.61,185.6,79.19999999]
[1755301634894,0.69000001,185.61,185.6,38.7]
[1755301635480,0.69000001,185.61,185.6,124.09157395]
[1755301635481,1e-08,185.61,185.6,124.09157395]
[1755301635698,1e-08,185.61,185.6,123.55278085]
[1755301635996,1e-08,185.61,185.6,124.25278085]
[1755301636588,1e-08,185.61,185.6,129.64071188]
[1755301638195,1e-08,185.61,185.6,128.94071188]
[1755301638690,1e-08,185.61,185.6,129.64071188]
[1755301639405,1e-08,185.62,185.6,129.64071188]
[1755301639607,1e-08,185.62,185.61,5.65278086]
[1755301640896,0.71000001,185.62,185.61,11.04042161]
[1755301641086,0.71000001,185.62,185.61,44.08764075]
[1755301641284,0.71000001,185.62,185.54,79.19999999]
[1755301641492,6.36278087,185.62,185.57,5.65278086]
[1755301641796,0.71,185.61,185.58,38.7]
[1755301642001,1e-08,185.62,185.59,5.65278086]
[1755301642300,0.71,185.6,185.59,5.65278086]
[1755301642505,0.71,185.6,185.59,44.35278086]
[1755301643002,0.71,185.6,185.59,44.08822134]
[1755301643898,0.71,185.6,185.59,38.7]
[1755301644100,0.71,185.6,185.58,5.38847813]
[1755301644304,0.71,185.6,185.59,38.7]
[1755301644772,6.36278086,185.6,185.59,38.7]
[1755301645277,6.36278086,185.6,185.59,0.03]
[1755301646000,11.75071189,185.6,185.59,0.03]
[1755301646187,26.85692746,185.6,185.59,0.03]
[1755301646393,36.01008674,185.6,185.59,0.03]
[1755301646790,30.35730588,185.6,185.59,0.03]
[1755301646993,15.10621557,185.59,185.57,0.03]
[1755301647296,55.91276732,185.58,185.57,0.03]
[1755301647595,5.65278086,185.51,185.5,0.03]
[1755301647996,6.36278086,185.51,185.5,0.03]
[1755301648313,0.71,185.51,185.5,0.03]
[1755301648517,6.36278086,185.51,185.5,0.03]
[1755301648822,21.46899643,185.51,185.5,0.03]
[1755301649045,26.85954141,185.51,185.5,0.03]
[1755301649817,30.3582939,185.51,185.5,0.03]
[1755301650025,56.3582939,185.51,185.5,0.03]
[1755301650419,62.01107476,185.51,185.5,0.03]
[1755301651708,36.01107476,185.51,185.5,0.03]
[1755301651909,36.01107476,185.51,185.48,0.03]
[1755301651910,74.73107476,185.51,185.48,0.03]
[1755301652225,52.41177729,185.49,185.48,0.03]
[1755301652726,53.12177729,185.49,185.48,0.03]
[1755301653223,58.51290349,185.49,185.48,0.03]
[1755301653809,52.86012263,185.49,185.48,0.03]
[1755301655719,21.46899643,185.49,185.48,0.03]
[1755301656216,15.81621557,185.49,185.48,0.03]
[1755301656420,21.46899643,185.49,185.48,0.03]
[1755301657327,15.81621557,185.49,185.48,0.03]
[1755301657524,21.46899643,185.49,185.48,0.03]
[1755301658740,5.65278086,185.5,185.48,0.03]
[1755301659048,6.36278086,185.49,185.48,0.03]
[1755301659349,0.71,185.49,185.48,0.03]
[1755301660731,6.36278086,185.49,185.48,0.03]
[1755301661423,5.65278086,185.5,185.48,0.03]
[1755301661630,21.46899643,185.52,185.48,0.03]
[1755301662235,0.06,185.51,185.48,0.03]
[1755301663023,0.06,185.51,185.48,5.68278086]
[1755301663221,0.06,185.51,185.48,11.07415382]
[1755301663621,0.06,185.51,185.48,11.77415382]
[1755301664246,0.06,185.51,185.49,6.35278086]
[1755301664442,0.06,185.51,185.5,5.65278086]
[1755301664646,0.06,185.51,185.5,6.35278086]
[1755301665060,0.06,185.51,185.49,5.65278086]
[1755301665234,0.06,185.51,185.48,11.07415382]
[1755301665826,6.31278086,185.5,185.48,0.03]
[1755301666025,6.31278086,185.49,185.48,0.03]
[1755301666846,5.65278086,185.49,185.48,0.03]
[1755301667165,6.31278086,185.49,185.48,0.03]
[1755301667765,5.71278086,185.51,185.48,0.03]
[1755301667941,0.06,185.51,185.48,0.03]
[1755301668342,6.37278086,185.51,185.48,0.03]
[1755301668737,5.65278086,185.5,185.48,0.03]
[1755301669097,6.31278086,185.5,185.48,0.03]
[1755301669236,5.71278086,185.51,185.48,0.03]
[1755301669435,6.37278086,185.51,185.48,0.03]
[1755301669630,0.06,185.51,185.48,6.35278086]
[1755301669847,0.06,185.51,185.5,5.65278086]
[1755301670234,0.06,185.51,185.49,6.32278086]
[1755301671141,0.06,185.51,185.5,5.39083557]
[1755301671455,0.06,185.51,185.5,11.04361643]
[1755301672140,0.06,185.51,185.5,11.71361643]
[1755301672342,0.06,185.51,185.5,11.04361643]
[1755301679084,0.06,185.51,185.5,11.71361643]
[1755301680451,0.06,185.51,185.5,11.04361643]
[1755301680656,0.72,185.51,185.49,5.39107019]
[1755301681880,0.06,185.51,185.49,5.39107019]
[1755301683568,0.06,185.51,185.49,11.04385105]
[1755301684678,0.06,185.51,185.5,5.65278086]
[1755301685071,0.06,185.51,185.5,45.02278086]
[1755301686086,0.06,185.51,185.5,124.7618644]
[1755301686282,0.06,185.51,185.5,124.22278085]
[1755301686664,0.06,185.51,185.5,131.77373542]
[1755301687497,1e-08,185.51,185.5,131.77373542]
[1755301692183,1e-08,185.51,185.5,131.10373542]
[1755301692396,1e-08,185.51,185.5,131.77373542]
[1755301692991,1e-08,185.51,185.5,128.94361642]
[1755301693813,0.66000001,185.51,185.5,38.7]
[1755301694813,0.66000001,185.51,185.5,44.35278086]
[1755301695116,0.66000001,185.51,185.5,38.7]
[1755301695503,0.66000001,185.51,185.5,38.73]
[1755301697221,6.31278087,185.51,185.5,0.03]
[1755301697619,0.66000001,185.51,185.5,0.03]
[1755301698416,1e-08,185.51,185.5,44.38278086]
[1755301699319,1e-08,185.51,185.5,123.58278085]
[1755301699539,1e-08,185.51,185.5,124.24278085]
[1755301700617,1e-08,185.51,185.5,129.63361642]
[1755301702013,1e-08,185.51,185.5,155.63361642]
[1755301704030,1e-08,185.51,185.5,157.13361842]
[1755301704219,1e-08,185.51,185.5,157.79361842]
[1755301704419,0.06,185.55,185.5,171.27070736]
[1755301704615,0.06,185.55,185.54,11.04245424]
[1755301704842,0.06,185.55,185.54,128.92245423]
[1755301705243,0.06,185.55,185.54,129.58245423]
[1755301705843,0.06,185.57,185.56,26.0]
[1755301706038,0.06,185.57,185.56,70.33278086]
[1755301706255,0.06,185.57,185.56,70.99278086]
[1755301706669,0.06,185.57,185.56,76.64556172]
[1755301706846,0.06,185.57,185.56,70.99278086]
[1755301707958,0.06,185.57,185.56,76.38187333]
[1755301708351,0.06,185.57,185.56,37.04187333]
[1755301708653,0.06,185.57,185.56,75.72187333]
[1755301709035,0.78,185.57,185.56,75.72187333]
[1755301709432,0.06,185.57,185.56,75.72187333]
[1755301709661,0.06,185.57,185.56,76.92078257]
[1755301710038,0.06,185.57,185.56,79.08008457]
[1755301712866,1e-08,185.57,185.56,84.73286543]
[1755301713060,1e-08,185.57,185.56,163.93286542]
[1755301713240,1e-08,185.57,185.56,163.39395618]
[1755301714145,1e-08,185.57,185.56,178.50017175]
[1755301715758,0.06,185.59,185.57,79.19999998]
[1755301715960,0.06,185.59,185.58,50.50441288]
[1755301716468,0.06,185.59,185.58,52.66336588]
[1755301717152,0.06,185.59,185.58,84.05187757]
[1755301717348,0.06,185.59,185.58,84.71187757]
[1755301717649,0.06,185.59,185.58,84.05187757]
[1755301719472,0.06,185.61,185.6,26.0]
[1755301719643,1e-08,185.61,185.6,149.51278084]
[1755301720149,1e-08,185.61,185.6,150.17278084]
[1755301720457,1e-08,185.61,185.6,149.51278084]
[1755301720656,1e-08,185.61,185.6,151.67150084]
[1755301721346,1e-08,185.61,185.6,157.05943187]
[1755301724774,1e-08,185.62,185.61,79.19999997]
[1755301724975,1e-08,185.62,185.61,86.0515449]
[1755301725469,0.06,185.64,185.63,26.0]
[1755301725666,0.06,185.64,185.63,70.29278086]
[1755301726156,0.2,185.65,185.63,72.98985688]
[1755301726358,0.2,185.65,185.64,5.65278086]
[1755301726669,0.2,185.65,185.64,11.03955095]
[1755301726873,0.2,185.65,185.64,13.19792195]
[1755301727540,1e-08,185.65,185.64,13.19792195]
[1755301727745,0.91,185.7,185.66,26.0]
[1755301727940,0.2,185.7,185.69,5.65278086]
[1755301728163,0.2,185.7,185.69,44.29278086]
[1755301728362,0.2,185.7,185.69,46.45056886]
[1755301728753,0.91,185.7,185.69,51.83588847]
[1755301729457,0.91,185.7,185.69,13.19588847]
[1755301729661,0.91,185.7,185.69,49.67810047]
[1755301729865,0.91,185.7,185.69,38.64]
[1755301731966,0.91,185.7,185.69,44.29278086]
[1755301732287,0.91,185.7,185.69,49.67810047]
[1755301733590,0.91,185.7,185.69,128.87810044]
[1755301736076,0.91,185.7,185.69,117.83999997]
[1755301736886,0.91,185.7,185.69,123.49278083]
[1755301737404,0.91,185.7,185.69,128.87810044]
[1755301737553,0.2,185.7,185.69,128.87810044]
[1755301738296,0.91,185.7,185.69,128.87810044]
[1755301738604,0.91,185.7,185.69,123.49278083]
[1755301738774,0.91,185.7,185.69,117.83999997]
[1755301739211,0.91,185.7,185.69,79.19999997]
[1755301739353,0.91,185.7,185.68,38.62]
[1755301739689,0.71,185.69,185.68,38.62]
[1755301742477,0.71,185.69,185.68,44.00560965]
[1755301742799,0.2,185.7,185.68,49.65839051]
[1755301742962,0.2,185.7,185.69,5.65278086]
[1755301743163,0.2,185.7,185.69,84.85278083]
[1755301744175,0.2,185.7,185.69,90.23810044]
[1755301746981,0.2,185.7,185.69,90.93810044]
[1755301747511,0.2,185.7,185.69,90.23810044]
[1755301749803,0.2,185.7,185.69,92.39612144]
[1755301750001,0.2,185.7,185.69,90.23810044]
[1755301750314,0.91,185.7,185.69,79.19999997]
[1755301750613,0.91,185.7,185.69,117.79999997]
[1755301752508,0.91,185.7,185.69,38.6]
[1755301755206,0.91,185.7,185.69,44.25278086]
[1755301755408,0.91,185.7,185.69,38.6]
[1755301757310,0.91,185.7,185.68,38.58]
[1755301757487,0.7,185.69,185.68,38.58]
[1755301760295,0.7,185.69,185.68,43.96560965]
[1755301760611,0.2,185.7,185.68,49.61839051]
[1755301760797,0.2,185.7,185.69,5.65278086]
[1755301762191,0.2,185.7,185.69,11.03810047]
[1755301762388,0.2,185.7,185.69,11.73810047]
[1755301763210,0.2,185.7,185.69,90.93810044]
[1755301767530,0.2,185.7,185.69,93.09588844]
[1755301767834,0.2,185.7,185.69,128.81810044]
[1755301768834,0.9,185.7,185.69,79.19999997]
[1755301769009,0.9,185.7,185.69,38.56]
[1755301769329,0.9,185.7,185.69,49.59810047]
[1755301771929,0.9,185.7,185.69,38.56]
[1755301774266,0.9,185.7,185.69,44.21278086]
[1755301775004,0.9,185.7,185.69,49.59810047]
[1755301775548,0.2,185.7,185.69,49.59810047]
[1755301775753,0.2,185.7,185.69,50.29810047]
[1755301776238,0.2,185.7,185.69,128.79810044]
[1755301776415,0.2,185.7,185.69,90.23810044]
[1755301776416,0.9,185.7,185.69,90.23810044]
[1755301776626,0.9,185.7,185.69,123.41278083]
[1755301777755,0.9,185.7,185.69,117.75999997]
[1755301778445,6.55278086,185.7,185.67,0.03]
[1755301778654,0.7,185.69,185.68,38.56]
[1755301779826,4.66911284,185.69,185.68,38.56]
[1755301780236,19.2833149,185.69,185.67,0.03]
[1755301780437,13.89799529,185.68,185.67,0.03]
[1755301780632,29.00421086,185.68,185.67,0.03]
[1755301781350,29.00196257,185.68,185.67,0.03]
[1755301782256,34.38757222,185.68,185.67,0.03]
[1755301782625,26.0,185.66,185.65,0.03]
[1755301782823,15.10621557,185.65,185.63,0.03]
[1755301783044,28.30196257,185.64,185.63,0.03]
[1755301783254,29.00196257,185.64,185.63,0.03]
[1755301783784,28.99687426,185.64,185.63,0.03]
[1755301784723,34.38364435,185.64,185.63,0.03]
[1755301785141,25.15637051,185.64,185.63,0.03]
[1755301785430,34.36957661,185.64,185.63,0.03]
[1755301788447,30.80563596,185.64,185.63,0.03]
[1755301788674,34.36530464,185.64,185.63,0.03]
[1755301790349,30.80563596,185.64,185.63,0.03]
[1755301792870,30.80161945,185.64,185.63,0.03]
[1755301793359,26.84576652,185.64,185.63,0.03]
[1755301794545,65.38576652,185.64,185.63,0.03]
[1755301794744,72.90276679,185.64,185.63,0.03]
[1755301795844,15.10621557,185.64,185.63,5.68278086]
[1755301796040,15.10621557,185.64,185.63,6.40278086]
[1755301796352,0.06,185.65,185.63,11.78979404]
[1755301796550,0.06,185.65,185.64,5.65278086]
[1755301797274,0.06,185.65,185.64,6.37278086]
[1755301798248,0.06,185.65,185.64,11.75955095]
[1755301800377,0.06,185.65,185.63,0.03]
[1755301800378,0.78,185.65,185.63,0.03]
[1755301800768,0.78,185.65,185.63,5.68278086]
[1755301800957,0.06,185.65,185.63,5.68278086]
[1755301802497,0.78,185.65,185.63,0.03]
[1755301804087,0.06,185.65,185.64,5.65278086]
[1755301805363,0.06,185.65,185.63,5.68278086]
[1755301805685,15.10621557,185.62,185.61,0.03]
[1755301805889,41.10621557,185.61,185.59,0.03]
[1755301806061,5.65278086,185.6,185.59,0.03]
[1755301806461,79.62621557,185.61,185.59,0.03]
[1755301806779,0.72,185.6,185.59,0.03]
[1755301807283,0.72,185.63,185.59,11.07095702]
[1755301807487,38.52,185.64,185.61,5.65278086]
[1755301807655,15.16621557,185.65,185.61,5.65278086]
[1755301807851,15.88621557,185.65,185.61,5.65278086]
[1755301808384,0.78,185.65,185.62,5.65278086]
[1755301808562,0.06,185.65,185.62,5.65278086]
[1755301808762,0.06,185.65,185.63,5.65278086]
[1755301809691,0.06,185.65,185.64,5.38677009]
[1755301810486,0.06,185.65,185.64,11.03955095]
[1755301812397,0.78,185.65,185.6,5.38793103]
[1755301812688,0.72,185.64,185.61,5.65278086]
[1755301813265,0.06,185.65,185.63,5.65278086]
[1755301814361,0.06,185.65,185.64,5.65278086]
[1755301815372,0.06,185.65,185.64,6.30278086]
[1755301816470,0.06,185.65,185.64,11.68955095]
[1755301817572,0.06,185.65,185.64,11.03955095]
[1755301819003,0.06,185.65,185.64,5.65278086]
[1755301819490,0.06,185.65,185.64,6.30278086]
[1755301819693,0.06,185.65,185.64,5.65278086]
[1755301820701,0.06,185.65,185.64,11.03955095]
[1755301822871,0.78,185.65,185.62,38.52]
[1755301823100,0.72,185.64,185.62,38.52]
[1755301823304,0.06,185.65,185.62,5.65278086]
[1755301823484,0.78,185.65,185.62,5.65278086]
[1755301823802,0.78,185.65,185.61,84.58742334]
[1755301824006,0.78,185.65,185.62,5.65278086]
[1755301824195,0.78,185.65,185.62,11.03997587]
[1755301824577,0.06,185.65,185.62,11.03997587]
[1755301824778,0.06,185.65,185.63,5.65278086]
[1755301824998,0.06,185.65,185.64,5.65278086]
[1755301826201,0.06,185.65,185.64,11.03955095]
[1755301828813,0.78,185.65,185.62,79.19999997]
[1755301829286,0.72,185.64,185.62,79.19999997]
[1755301829681,6.37278086,185.63,185.59,0.03]
[1755301829882,9.93085226,185.63,185.59,0.03]
[1755301830115,0.72,185.62,185.59,0.03]
[1755301831186,14.59349018,185.63,185.59,0.03]
[1755301831509,0.72,185.61,185.59,0.03]
[1755301832209,0.72,185.6,185.59,0.03]
[1755301835587,3.55351733,185.61,185.59,0.03]
[1755301836310,24.04715765,185.62,185.59,0.03]
[1755301836499,0.72,185.61,185.59,0.03]
[1755301837914,26.06,185.65,185.59,5.68278086]
[1755301838119,15.10621557,185.63,185.61,5.65278086]
[1755301838409,15.10621557,185.63,185.59,0.03]
[1755301838410,7.50341453,185.62,185.6,5.65278086]
[1755301838612,3.55426305,185.62,185.6,5.65278086]
[1755301839810,3.55426305,185.62,185.59,0.03]
[1755301840009,0.72,185.61,185.59,0.03]
[1755301840803,8.94176297,185.62,185.59,0.03]
[1755301841011,0.72,185.6,185.59,0.03]
[1755301842217,26.86692746,185.6,185.59,0.03]
[1755301842514,34.37321124,185.6,185.59,0.03]
[1755301845522,0.72,185.63,185.59,5.68278086]
[1755301845726,4.27491328,185.63,185.62,5.65278086]
[1755301845909,8.22478216,185.63,185.62,5.65278086]
[1755301846311,8.22478216,185.63,185.61,5.65278086]
[1755301846524,3.61491328,185.63,185.62,5.65278086]
[1755301846715,4.00986198,185.63,185.62,5.65278086]
[1755301846923,0.06,185.63,185.62,6.34278086]
[1755301847526,0.06,185.63,185.62,5.65278086]
[1755301847708,0.06,185.63,185.62,6.34278086]
[1755301847905,0.06,185.63,185.62,11.73013136]
[1755301848102,0.06,185.63,185.62,11.04013136]
[1755301849311,0.06,185.63,185.62,11.73013136]
[1755301850929,0.06,185.63,185.62,11.04013136]
[1755301852829,0.06,185.63,185.62,11.73013136]
[1755301853830,0.06,185.63,185.62,6.0773505]
[1755301854024,0.06,185.63,185.62,50.21013136]
[1755301857840,0.06,185.63,185.62,129.41013136]
[1755301860245,0.06,185.63,185.62,128.72013136]
[1755301860635,0.06,185.63,185.62,129.41013136]
[1755301861765,0.06,185.65,185.64,5.65278086]
[1755301862062,0.06,185.65,185.64,128.96556172]
[1755301862240,1e-08,185.65,185.64,129.65556172]
[1755301862551,0.06,185.66,185.64,129.65556172]
[1755301862850,0.06,185.66,185.65,11.99556172]
[1755301863224,0.06,185.66,185.65,6.34278086]
[1755301863646,0.06,185.66,185.65,11.03926079]
[1755301863862,0.06,185.66,185.65,49.49926079]
[1755301864649,0.72,185.66,185.65,49.49926079]
[1755301865436,0.72,185.66,185.65,44.11278086]
[1755301865636,0.72,185.66,185.65,38.46]
[1755301865846,0.72,185.66,185.65,44.11278086]
[1755301866362,11.75897066,185.66,185.59,0.03]
[1755301866666,15.10621557,185.64,185.6,38.46]
[1755301866868,6.31278086,185.63,185.6,38.46]
[1755301867166,0.66,185.62,185.59,0.03]
[1755301867344,0.66,185.62,185.59,5.68278086]
[1755301867545,0.66,185.61,185.59,5.68278086]
[1755301867865,0.66,185.6,185.59,5.68278086]
[1755301868164,0.66,185.63,185.59,11.07088289]
[1755301868467,15.10621557,185.64,185.62,5.65278086]
[1755301868640,15.16621557,185.66,185.63,5.65278086]
[1755301868841,15.16621557,185.66,185.6,38.46]
[1755301869037,0.66,185.65,185.63,5.65278086]
[1755301869241,0.06,185.66,185.64,5.65278086]
[1755301869472,0.72,185.66,185.65,5.65278086]
[1755301869742,0.06,185.66,185.65,5.65278086]
[1755301870250,0.06,185.66,185.63,5.38706028]
[1755301870561,0.72,185.66,185.65,5.65278086]
[1755301873372,0.06,185.66,185.65,5.65278086]
[1755301873556,0.06,185.66,185.65,11.72926079]
[1755301875681,0.06,185.66,185.65,11.03926079]
[1755301878478,0.75,185.66,185.64,79.2]
[1755301878661,0.75,185.66,185.63,5.65278086]
[1755301878860,0.75,185.66,185.64,38.44]
[1755301879407,0.75,185.66,185.62,44.12278086]
[1755301879584,0.75,185.66,185.62,38.47]
[1755301879585,5.38647993,185.65,185.62,38.47]
[1755301879754,0.69,185.64,185.62,38.47]
[1755301880760,0.69,185.64,185.62,0.03]
[1755301880958,6.34278086,185.64,185.62,0.03]
[1755301881475,11.72984114,185.63,185.62,0.03]
[1755301882473,0.69,185.63,185.62,0.03]
[1755301882976,31.44640947,185.66,185.62,5.68278086]
[1755301883160,0.69,185.65,185.63,5.65278086]
[1755301884157,0.06,185.66,185.64,5.65278086]
[1755301884361,0.75,185.66,185.64,5.65278086]
[1755301885763,0.69,185.65,185.64,5.65278086]
[1755301887068,0.69,185.65,185.62,5.41734744]
[1755301887272,0.69,185.65,185.64,5.65278086]
[1755301887774,0.06,185.66,185.64,5.65278086]
[1755301888078,0.06,185.66,185.65,5.65278086]
[1755301888982,4.71077219,185.66,185.62,0.03]
[1755301889191,0.69,185.65,185.63,5.65278086]
[1755301889666,0.69,185.64,185.63,5.65278086]
[1755301891273,0.69,185.64,185.62,5.68278086]
[1755301891474,0.69,185.63,185.62,5.68278086]
[1755301891871,0.69,185.63,185.62,0.03]
[1755301892184,4.65655559,185.63,185.62,0.03]
[1755301892387,8.22672979,185.63,185.62,0.03]
[1755301892564,12.92379007,185.63,185.62,0.03]
[1755301892770,13.61379007,185.63,185.62,0.03]
[1755301892975,10.04361587,185.63,185.62,0.03]
[1755301893379,13.61379007,185.63,185.62,0.03]
[1755301893890,13.61279815,185.63,185.62,0.03]
[1755301894075,13.61195587,185.63,185.62,0.03]
[1755301894419,6.07706028,185.63,185.62,0.03]
[1755301894790,13.61846346,185.63,185.62,0.03]
[1755301895890,13.35846346,185.63,185.62,0.03]
[1755301899591,13.36131567,185.63,185.62,0.03]
[1755301901276,34.1203121,185.63,185.62,0.03]
[1755301902996,60.1203121,185.63,185.62,0.03]
[1755301903782,98.5403121,185.63,185.62,0.03]
[1755301904407,94.56853579,185.63,185.62,0.03]
[1755301906588,15.10621557,185.62,185.61,0.03]
[1755301906791,29.47306163,185.62,185.61,0.03]
[1755301907108,25.03147551,185.62,185.61,0.03]
[1755301907312,29.47306163,185.62,185.61,0.03]
[1755301907511,25.03147551,185.62,185.61,0.03]
[1755301907802,34.86041213,185.62,185.61,0.03]